bitfinex-derivatives/quotes_SOLF0:USTF0_20250923
["timestamp","ask_amount","ask_price","bid_price","bid_amount"]
[1758635055585,7.62,219.34,219.21,7.44]
[1758635055881,7.62,219.34,219.22,7.44]
[1758635056182,7.62,219.41,219.24,7.44]
[1758635056575,4.0992,219.4,219.28,7.44]
[1758635057484,4.0992,219.4,219.29,4.101]
[1758635057877,7.62,219.41,219.29,4.101]
[1758635058078,7.62,219.41,219.3,7.44]
[1758635058581,7.62,219.41,219.31,4.1007]
[1758635058582,11.7189,219.41,219.31,4.1007]
[1758635058787,11.7189,219.41,219.3,7.44]
[1758635059090,4.0992,219.39,219.3,7.44]
[1758635059888,7.62,219.48,219.33,7.44]
[1758635060687,4.0985,219.43,219.33,7.44]
[1758635060887,7.62,219.44,219.33,7.44]
[1758635061182,4.0988,219.41,219.33,7.44]
[1758635061483,63.7614,219.41,219.23,7.44]
[1758635061678,7.62,219.38,219.23,7.44]
[1758635061882,7.62,219.38,219.25,7.44]
[1758635063090,7.62,219.38,219.24,4.1019]
[1758635063091,7.62,219.38,219.26,4.1016]
[1758635063387,7.62,219.38,219.27,7.27]
[1758635063588,4.0998,219.36,219.27,7.27]
[1758635063788,63.7721,219.37,219.27,7.27]
[1758635064188,7.62,219.38,219.27,7.27]
[1758635064993,4.1004,219.33,219.27,7.27]
[1758635065291,7.58,219.35,219.21,7.27]
[1758635065987,7.58,219.35,219.25,7.27]
[1758635066195,7.58,219.4,219.25,7.27]
[1758635067095,7.58,219.37,219.25,7.27]
[1758635067593,4.1003,219.33,219.25,7.27]
[1758635068091,7.58,219.37,219.25,7.27]
[1758635068394,4.1001,219.34,219.25,7.27]
[1758635068794,4.1005,219.32,219.25,7.27]
[1758635068985,7.58,219.33,219.25,7.27]
[1758635069491,11.6804,219.33,219.25,7.27]
[1758635069691,7.58,219.33,219.25,7.27]
[1758635071097,7.58,219.39,219.25,7.27]
[1758635071598,4.0995,219.38,219.27,7.27]
[1758635072498,4.0995,219.38,219.28,4.1012]
[1758635073698,4.099,219.41,219.3,4.1008]
[1758635073897,7.58,219.43,219.31,7.27]
[1758635074795,63.7609,219.41,219.31,7.27]
[1758635074995,7.58,219.4,219.31,7.27]
[1758635075294,4.1,219.35,219.31,7.27]
[1758635075500,4.1,219.35,219.25,7.27]
[1758635075694,7.58,219.37,219.25,7.27]
[1758635076400,63.7751,219.36,219.25,7.27]
[1758635077199,4.1009,219.3,219.25,7.27]
[1758635077402,63.7751,219.36,219.25,7.27]
[1758635078005,4.1005,219.32,219.25,7.27]
[1758635078398,7.58,219.33,219.25,7.27]
[1758635078599,63.7862,219.32,219.2,7.27]
[1758635079402,4.1016,219.27,219.2,7.27]
[1758635081908,4.1019,219.25,219.11,7.27]
[1758635082202,71.3842,219.26,219.11,7.27]
[1758635082407,7.58,219.26,219.14,7.27]
[1758635082709,4.1024,219.22,219.14,7.27]
[1758635083304,4.1028,219.2,219.14,7.27]
[1758635084198,63.814,219.23,219.01,306.36]
[1758635084503,63.8184,219.21,219.05,7.27]
[1758635085006,4.1034,219.17,219.05,11.3756]
[1758635085908,4.1037,219.15,219.05,11.3756]
[1758635086205,4.1037,219.15,219.05,7.27]
[1758635087212,4.1041,219.13,219.05,7.27]
[1758635087510,7.58,219.16,219.05,7.27]
[1758635088415,11.6835,219.16,219.05,11.3755]
[1758635089113,7.58,219.16,219.07,4.1051]
[1758635090110,7.58,219.24,219.09,11.3748]
[1758635090314,7.58,219.24,219.09,71.1225]
[1758635090513,127.5637,219.34,219.17,11.3733]
[1758635090909,7.58,219.33,219.17,11.3733]
[1758635091109,4.1013,219.29,219.17,11.3733]
[1758635091313,7.58,219.28,219.17,11.3733]
[1758635091913,7.58,219.28,219.19,4.1029]
[1758635094209,0.79395861,219.34,219.22,7.67]
[1758635094517,7.51,219.36,219.25,7.67]
[1758635094716,7.51,219.36,219.25,11.7717]
[1758635096012,7.51,219.36,219.27,4.1014]
[1758635097115,11.609,219.41,219.29,4.1011]
[1758635097311,7.51,219.41,219.29,4.1011]
[1758635098216,4.0993,219.39,219.28,7.67]
[1758635099419,4.0993,219.39,219.28,11.7713]
[1758635099714,7.51,219.41,219.28,7.67]
[1758635099915,7.51,219.36,219.28,7.67]
[1758635100314,7.51,219.45,219.32,71.4566]
[1758635100615,7.51,219.45,219.36,4.0997]
[1758635101011,63.7169,219.57,219.39,7.67]
[1758635101315,7.51,219.52,219.39,7.67]
[1758635101510,63.7262,219.53,219.33,63.7839]
[1758635101720,4.0974,219.49,219.38,4.0994]
[1758635101920,7.51,219.52,219.34,7.67]
[1758635102219,7.51,219.52,219.38,7.67]
[1758635102811,63.7062,219.6,219.42,71.4269]
[1758635103021,7.51,219.59,219.43,7.67]
[1758635103222,4.0961,219.56,219.45,4.0981]
[1758635103616,63.732,219.51,219.34,7.67]
[1758635103916,4.098,219.46,219.34,7.67]
[1758635104126,63.7496,219.45,219.34,7.67]
[1758635104314,4.0988,219.42,219.34,7.67]
[1758635104811,11.608,219.46,219.34,7.67]
[1758635105013,7.51,219.52,219.37,7.67]
[1758635105620,11.6069,219.52,219.39,7.67]
[1758635105819,11.6069,219.52,219.38,63.7698]
[1758635105820,63.706,219.61,219.43,63.7552]
[1758635106021,7.51,219.58,219.44,7.67]
[1758635106422,63.7269,219.53,219.36,7.67]
[1758635106612,4.0976,219.48,219.36,7.67]
[1758635106818,63.7352,219.5,219.36,7.67]
[1758635107019,7.51,219.47,219.36,7.67]
[1758635107215,4.0984,219.44,219.31,7.67]
[1758635107824,7.51,219.54,219.37,63.7727]
[1758635108021,7.51,219.54,219.36,7.67]
[1758635108220,4.0974,219.49,219.39,4.0992]
[1758635108523,4.0974,219.49,219.36,7.67]
[1758635108724,7.51,219.5,219.36,7.67]
[1758635109224,7.51,219.5,219.36,71.4443]
[1758635109422,7.51,219.5,219.37,63.772]
[1758635109724,7.51,219.5,219.36,7.67]
[1758635109925,7.51,219.48,219.36,7.67]
[1758635110318,4.0982,219.45,219.36,7.67]
[1758635110523,7.51,219.44,219.29,7.67]
[1758635111219,7.51,219.44,219.3,4.1008]
[1758635111424,7.66,219.42,219.29,7.67]
[1758635111925,7.66,219.37,219.2,7.27]
[1758635112826,4.1,219.35,219.2,7.27]
[1758635113021,7.66,219.37,219.27,63.8016]
[1758635113227,7.66,219.43,219.33,4.1004]
[1758635113726,7.66,219.43,219.28,11.3712]
[1758635113922,63.754,219.44,219.28,7.27]
[1758635113923,7.66,219.41,219.28,7.27]
[1758635114631,63.7731,219.37,219.21,7.27]
[1758635114822,7.66,219.36,219.22,63.8163]
[1758635115129,7.66,219.36,219.27,4.1015]
[1758635115431,7.66,219.36,219.24,63.8103]
[1758635115625,7.66,219.36,219.29,4.1011]
[1758635116133,7.66,219.36,219.27,7.27]
[1758635116330,7.66,219.36,219.25,4.1017]
[1758635116528,7.66,219.36,219.22,7.27]
[1758635116726,7.66,219.36,219.23,63.8129]
[1758635116927,7.66,219.36,219.24,63.8094]
[1758635117132,7.66,219.36,219.27,63.8014]
[1758635117320,7.66,219.45,219.29,71.0655]
[1758635117521,7.66,219.42,219.29,7.27]
[1758635117933,4.0989,219.41,219.33,4.1003]
[1758635118130,7.66,219.42,219.33,4.1003]
[1758635118432,7.66,219.49,219.33,7.27]
[1758635118632,63.7409,219.48,219.33,11.3703]
[1758635118927,7.66,219.47,219.33,7.27]
[1758635119130,7.66,219.43,219.33,7.27]
[1758635121127,4.099,219.41,219.33,7.27]
[1758635121332,7.66,219.43,219.3,7.27]
[1758635121729,63.756,219.43,219.3,7.27]
[1758635121933,63.7499,219.45,219.24,71.0805]
[1758635121934,7.66,219.41,219.24,71.0805]
[1758635122133,7.66,219.39,219.24,7.27]
[1758635122332,4.1004,219.34,219.25,4.1017]
[1758635122728,4.1004,219.34,219.24,7.27]
[1758635123234,7.66,219.35,219.27,4.1015]
[1758635123628,7.66,219.35,219.24,7.27]
[1758635124229,7.66,219.35,219.19,71.2945]
[1758635124429,4.1008,219.31,219.22,4.1023]
[1758635124729,4.1008,219.31,219.19,7.47]
[1758635124730,7.66,219.35,219.2,63.8212]
[1758635125034,7.58,219.39,219.26,7.47]
[1758635125836,4.0995,219.38,219.3,4.1009]
[1758635126136,7.58,219.39,219.26,7.47]
[1758635126434,11.6794,219.39,219.28,4.1013]
[1758635126636,7.58,219.39,219.26,7.47]
[1758635127133,4.0995,219.38,219.3,4.101]
[1758635127333,71.3482,219.39,219.26,7.47]
[1758635127635,7.58,219.37,219.19,7.47]
[1758635127838,4.1006,219.32,219.24,4.1021]
[1758635128037,11.6806,219.32,219.19,7.47]
[1758635128237,63.7618,219.41,219.21,7.47]
[1758635128442,7.58,219.4,219.21,7.47]
[1758635128643,7.58,219.4,219.26,63.8047]
[1758635128843,7.58,219.4,219.27,7.47]
[1758635129733,4.0996,219.38,219.28,4.1013]
[1758635129935,7.58,219.37,219.19,63.824]
[1758635130140,7.58,219.37,219.23,7.47]
[1758635130441,7.58,219.37,219.25,4.1017]
[1758635130834,7.58,219.37,219.23,7.47]
[1758635131042,7.58,219.35,219.22,4.1023]
[1758635131543,4.101,219.3,219.22,4.1023]
[1758635131932,7.58,219.31,219.2,4.1028]
[1758635132131,4.1017,219.27,219.13,7.47]
[1758635132331,7.58,219.28,219.13,7.47]
[1758635132537,7.58,219.28,219.18,4.1032]
[1758635132741,4.1019,219.26,219.13,71.3122]
[1758635133042,7.58,219.26,219.13,7.47]
[1758635133937,7.58,219.24,219.13,7.47]
[1758635134842,4.1024,219.23,219.13,7.47]
[1758635135041,63.8227,219.2,219.02,7.47]
[1758635135239,7.58,219.21,219.03,63.8716]
[1758635135440,7.58,219.21,219.08,4.1051]
[1758635135944,7.58,219.21,219.1,4.1045]
[1758635136144,7.58,219.21,219.08,63.8557]
[1758635136445,7.58,219.21,219.08,7.47]
[1758635136748,4.1029,219.2,219.09,4.1047]
[1758635137243,4.1036,219.16,219.08,7.47]
[1758635137443,7.58,219.21,219.08,7.47]
[1758635138444,7.58,219.21,219.09,63.8541]
[1758635138643,7.58,219.21,219.12,4.1043]
[1758635139242,7.58,219.3,219.13,7.47]
[1758635139539,7.58,219.28,219.13,7.47]
[1758635140543,63.8119,219.24,219.05,63.8654]
[1758635140749,63.8313,219.17,219.03,7.47]
[1758635140954,7.58,219.18,219.03,7.47]
[1758635141138,11.684,219.14,219.03,11.5759]
[1758635142148,7.58,219.14,219.03,7.47]
[1758635142749,15.56,219.22,219.05,7.47]
[1758635142941,7.58,219.21,219.06,63.8625]
[1758635143249,4.1028,219.2,219.09,4.1048]
[1758635143446,71.4003,219.21,219.05,7.47]
[1758635143645,4.103,219.19,219.07,4.1053]
[1758635143845,4.103,219.19,219.05,7.47]
[1758635144250,4.1034,219.17,219.06,4.1054]
[1758635144746,4.1029,219.2,219.07,4.1051]
[1758635144948,7.58,219.21,219.05,7.47]
[1758635145350,7.58,219.21,219.09,4.1047]
[1758635145351,4.1032,219.18,219.09,4.1047]
[1758635145551,7.58,219.21,219.06,63.8619]
[1758635145748,7.58,219.21,219.05,7.47]
[1758635146448,4.1036,219.16,219.05,7.47]
[1758635147350,7.58,219.17,219.08,4.1051]
[1758635147548,83.78,219.22,219.07,7.47]
[1758635147549,91.36,219.22,219.07,7.47]
[1758635147942,7.58,219.22,219.1,4.1045]
[1758635148244,7.58,219.22,219.11,7.47]
[1758635148653,7.58,219.22,219.16,4.1035]
[1758635148843,7.58,219.22,219.11,7.47]
[1758635150052,4.1032,219.18,219.11,7.47]
[1758635150452,4.1032,219.18,219.09,4.1047]
[1758635150653,7.58,219.19,219.11,4.1045]
[1758635151042,7.58,219.19,219.08,63.8571]
[1758635151246,7.58,219.19,219.09,7.47]
[1758635151545,7.58,219.19,219.12,4.1043]
[1758635151947,7.58,219.19,219.09,7.47]
[1758635154253,11.6831,219.19,219.09,7.47]
[1758635154550,7.58,219.19,219.09,7.47]
[1758635154854,4.1039,219.14,219.04,6.96]
[1758635155755,4.1042,219.13,219.04,6.96]
[1758635156054,7.48,219.15,219.04,6.96]
[1758635157057,7.48,219.22,219.05,6.96]
[1758635157353,7.48,219.22,219.09,6.96]
[1758635157955,4.1027,219.21,219.11,4.1043]
[1758635158157,7.48,219.22,219.09,6.96]
[1758635158456,4.1029,219.2,219.1,4.1045]
[1758635158957,4.102,219.24,219.14,6.96]
[1758635159159,71.2823,219.27,219.14,6.96]
[1758635159554,7.48,219.27,219.14,6.96]
[1758635159752,71.2819,219.27,219.14,6.96]
[1758635159948,7.48,219.27,219.14,6.96]
[1758635160364,0.72329923,219.28,219.15,63.8355]
[1758635160660,0.79416698,219.3,219.23,4.102]
[1758635160851,0.79416698,219.3,219.2,6.96]
[1758635161756,0.79416698,219.3,219.25,4.1018]
[1758635161957,0.79416698,219.3,219.19,6.96]
[1758635162661,0.79416698,219.3,219.22,63.815]
[1758635162962,0.79416698,219.3,219.26,6.96]
[1758635163161,7.48,219.42,219.26,6.96]
[1758635163459,63.7366,219.5,219.25,70.02440253]
[1758635163460,7.48,219.47,219.34,6.96]
[1758635164650,8.19361112,219.52,219.34,6.96]
[1758635164853,8.19361112,219.52,219.36,6.96]
[1758635165557,4.0975,219.49,219.36,6.96]
[1758635165771,11.5775,219.49,219.36,6.96]
[1758635165958,7.48,219.49,219.36,6.96]
[1758635166760,7.48,219.49,219.37,4.0995]
[1758635166961,7.48,219.55,219.38,6.96]
[1758635167265,63.712,219.58,219.41,6.96]
[1758635167563,4.0959,219.57,219.42,6.96]
[1758635168060,4.0959,219.57,219.43,4.0984]
[1758635168256,4.0963,219.55,219.42,6.96]
[1758635168458,370.2892,219.59,219.42,6.96]
[1758635168652,306.58,219.59,219.43,4.0984]
[1758635168854,310.6756,219.59,219.43,6.96]
[1758635169060,310.6756,219.59,219.43,70.7137]
[1758635169359,310.6756,219.59,219.45,6.21780253]
[1758635169555,4.096,219.57,219.45,6.21780253]
[1758635169757,306.58,219.59,219.45,6.21780253]
[1758635170162,306.58,219.59,219.46,6.96]
[1758635170563,7.48,219.61,219.46,6.96]
[1758635171363,7.48,219.61,219.47,4.0976]
[1758635171563,7.48,219.61,219.47,7.7]
[1758635171761,7.48,219.61,219.5,6.21780253]
[1758635171968,7.7,219.67,219.51,7.7]
[1758635172170,314.08,219.72,219.56,7.7]
[1758635172461,4.0937,219.69,219.56,7.7]
[1758635173066,11.7932,219.72,219.56,7.7]
[1758635173256,7.7,219.72,219.56,7.7]
[1758635173457,63.6852,219.67,219.56,7.7]
[1758635173663,7.7,219.69,219.56,7.7]
[1758635173957,63.6919,219.65,219.51,6.21780253]
[1758635174163,4.0954,219.6,219.51,6.21780253]
[1758635174364,4.0954,219.6,219.5,7.7]
[1758635174558,7.7,219.6,219.5,7.7]
[1758635175165,4.0957,219.58,219.46,6.21780253]
[1758635175466,7.7,219.6,219.46,6.21780253]
[1758635175668,4.0956,219.59,219.46,6.21780253]
[1758635176269,4.0959,219.57,219.46,6.21780253]
[1758635176470,7.7,219.6,219.46,6.21780253]
[1758635177165,7.7,219.6,219.47,7.7]
[1758635177371,4.095,219.62,219.47,7.7]
[1758635177667,4.0947,219.63,219.48,4.0975]
[1758635177869,4.0947,219.63,219.49,7.7]
[1758635178669,7.7,219.64,219.51,10.31480253]
[1758635178867,63.6646,219.75,219.51,10.31480253]
[1758635178868,7.7,219.73,219.56,6.21780253]
[1758635179066,7.7,219.7,219.57,7.7]
[1758635181378,4.0944,219.65,219.57,7.7]
[1758635181970,4.0948,219.63,219.51,6.21780253]
[1758635182265,7.7,219.7,219.52,7.7]
[1758635182471,7.7,219.7,219.52,63.7277]
[1758635182767,7.7,219.7,219.55,7.7]
[1758635183168,11.7935,219.7,219.58,4.0956]
[1758635183572,7.7,219.7,219.59,7.49]
[1758635184973,71.377,219.7,219.54,7.49]
[1758635185170,4.0944,219.65,219.54,7.49]
[1758635185569,6.96,219.66,219.54,7.49]
[1758635185772,4.0946,219.64,219.54,7.49]
[1758635186072,6.96,219.66,219.54,7.49]
[1758635186573,4.0946,219.64,219.54,7.49]
[1758635187969,6.96,219.66,219.54,7.49]
[1758635188173,6.96,219.72,219.54,71.2109]
[1758635188475,6.96,219.72,219.57,7.49]
[1758635189274,4.0935,219.7,219.59,4.0955]
[1758635189677,6.96,219.72,219.57,7.49]
[1758635189877,4.0938,219.68,219.57,7.49]
[1758635190180,6.96,219.72,219.57,7.49]
[1758635191074,4.0925,219.75,219.6,7.49]
[1758635191579,6.96,219.77,219.65,7.49]
[1758635192179,6.96,219.77,219.67,4.0938]
[1758635192481,6.96,219.77,219.65,7.49]
[1758635192983,4.0925,219.75,219.65,7.49]
[1758635193178,6.96,219.77,219.65,7.49]
[1758635193684,6.96,219.77,219.65,11.5842]
[1758635193883,6.96,219.77,219.65,7.49]
[1758635195087,6.96,219.77,219.7,4.0934]
[1758635195283,6.96,219.82,219.69,7.49]
[1758635195585,6.96,219.82,219.72,4.0929]
[1758635195791,6.96,219.82,219.69,71.1684]
[1758635195991,6.96,219.82,219.72,7.49]
[1758635196191,6.96,219.87,219.76,4.0923]
[1758635196489,6.96,219.87,219.74,7.49]
[1758635196690,6.96,219.87,219.75,63.6619]
[1758635196889,6.96,219.87,219.76,7.49]
[1758635197789,6.96,219.87,219.74,51.36]
[1758635197990,6.96,219.87,219.73,116.16]
[1758635198390,6.96,219.87,219.72,116.14]
[1758635198589,6.96,219.85,219.71,7.49]
[1758635199395,4.0916,219.81,219.71,7.49]
[1758635199795,6.96,219.82,219.71,7.49]
[1758635200095,11.0512,219.82,219.71,11.5831]
[1758635200294,6.96,219.82,219.71,7.49]
[1758635201696,4.0918,219.8,219.71,7.49]
[1758635202197,4.0923,219.76,219.64,4.0944]
[1758635202390,6.96,219.85,219.66,7.49]
[1758635203096,11.0508,219.85,219.72,7.49]
[1758635203595,63.6383,219.84,219.72,7.49]
[1758635203795,6.96,219.83,219.67,7.49]
[1758635204096,6.96,219.81,219.67,7.49]
[1758635205294,6.96,219.81,219.68,63.6816]
[1758635205599,6.96,219.81,219.69,7.49]
[1758635205797,6.96,219.81,219.73,4.0929]
[1758635206096,63.6158,219.91,219.68,63.6816]
[1758635206097,6.96,219.9,219.72,7.49]
[1758635206490,6.96,219.86,219.72,7.49]
[1758635206690,6.96,219.84,219.72,7.49]
[1758635207200,4.0916,219.8,219.72,7.49]
[1758635207402,6.96,219.82,219.67,7.49]
[1758635207603,6.96,219.82,219.67,123.67]
[1758635207796,4.092,219.78,219.68,4.0937]
[1758635207996,6.96,219.82,219.68,4.0937]
[1758635208297,4.0916,219.8,219.7,4.0934]
[1758635208604,6.96,219.79,219.67,7.49]
[1758635209402,4.0927,219.75,219.67,7.49]
[1758635210301,4.0921,219.78,219.67,7.49]
[1758635210505,6.96,219.79,219.67,7.49]
[1758635210903,63.6534,219.78,219.63,123.65]
[1758635211202,6.96,219.79,219.64,4.0944]
[1758635211801,4.0929,219.74,219.64,4.0944]
[1758635211992,6.96,219.79,219.63,123.65]
[1758635212403,4.0927,219.75,219.66,4.094]
[1758635212703,6.96,219.79,219.63,187.3461]
[1758635213206,6.96,219.79,219.67,7.05]
[1758635213703,7.21,219.84,219.69,7.05]
[1758635213899,7.21,219.84,219.71,7.05]
[1758635214403,7.21,219.84,219.76,4.0922]
[1758635215106,7.21,219.84,219.71,7.05]
[1758635215807,4.0912,219.83,219.71,7.05]
[1758635216406,7.21,219.84,219.71,7.05]
[1758635216706,7.21,219.84,219.72,63.6695]
[1758635216907,7.21,219.84,219.77,4.092]
[1758635217406,7.21,219.84,219.74,4.0927]
[1758635217909,4.0912,219.83,219.73,7.05]
[1758635218107,7.21,219.84,219.73,7.05]
[1758635218605,7.21,219.84,219.72,4.093]
[1758635219006,4.0912,219.83,219.72,4.093]
[1758635219208,7.21,219.84,219.69,7.05]
[1758635219407,7.21,219.82,219.69,7.05]
[1758635220012,63.6459,219.81,219.69,7.05]
[1758635220209,7.21,219.8,219.69,7.05]
[1758635220613,5.05550459,219.85,219.69,63.6778]
[1758635220914,63.6482,219.8,219.63,7.05]
[1758635221115,7.21,219.77,219.63,7.05]
[1758635221420,7.21,219.72,219.55,7.05]
[1758635221608,63.6743,219.71,219.56,4.096]
[1758635221914,7.21,219.7,219.55,7.05]
[1758635222111,7.21,219.7,219.55,70.77]
[1758635222412,7.21,219.7,219.59,7.05]
[1758635222612,7.21,219.75,219.62,7.05]
[1758635222809,7.21,219.75,219.66,4.0942]
[1758635223116,7.21,219.75,219.62,7.05]
[1758635223610,7.21,219.75,219.64,63.6914]
[1758635223811,7.21,219.8,219.72,4.0929]
[1758635224011,7.21,219.8,219.7,7.05]
[1758635224420,12.26550459,219.84,219.7,7.05]
[1758635224611,11.301,219.84,219.75,4.0924]
[1758635224906,11.301,219.84,219.7,7.05]
[1758635225310,11.301,219.84,219.71,63.6731]
[1758635225702,7.21,219.84,219.74,63.6646]
[1758635225910,5.05550459,219.87,219.75,7.05]
[1758635226107,5.05550459,219.88,219.75,7.05]
[1758635226304,5.05550459,219.9,219.8,63.6477]
[1758635226510,7.21,219.93,219.82,70.6917]
[1758635226714,7.21,219.93,219.82,11.1411]
[1758635227108,7.21,219.93,219.82,7.05]
[1758635227309,7.21,219.93,219.82,70.6907]
[1758635227804,7.21,219.93,219.82,7.05]
[1758635228008,12.26550459,219.93,219.79,7.05]
[1758635228306,12.26550459,219.93,219.84,4.0908]
[1758635228307,7.21,219.93,219.84,4.0908]
[1758635228507,7.21,219.93,219.82,7.05]
[1758635229419,4.0894,219.92,219.82,7.05]
[1758635229811,7.21,219.93,219.82,7.05]
[1758635230207,63.617,219.91,219.82,7.05]
[1758635230416,63.617,219.91,219.73,9.68885804]
[1758635230417,63.6221,219.89,219.74,19.7126]
[1758635230719,75.88450459,219.9,219.74,15.62]
[1758635230919,63.6251,219.88,219.73,11.1427]
[1758635231115,7.21,219.87,219.73,11.1427]
[1758635231716,11.3005,219.87,219.75,4.0925]
[1758635232219,7.21,219.87,219.75,7.29]
[1758635233015,11.3004,219.87,219.75,11.3825]
[1758635233221,7.21,219.87,219.75,7.29]
[1758635234117,4.0907,219.85,219.75,7.29]
[1758635234327,7.23,219.85,219.69,82.64]
[1758635234622,7.23,219.82,219.7,7.29]
[1758635234823,63.6466,219.81,219.7,7.29]
[1758635235123,63.6509,219.79,219.65,7.29]
[1758635235326,7.23,219.78,219.65,7.29]
[1758635235509,5.05550459,219.81,219.71,7.29]
[1758635235715,7.23,219.82,219.71,7.29]
[1758635236010,4.0909,219.84,219.74,4.0927]
[1758635236216,12.28550459,219.86,219.71,7.29]
[1758635236411,7.23,219.84,219.71,7.29]
[1758635237518,7.23,219.84,219.73,4.0929]
[1758635237722,7.23,219.81,219.71,7.29]
[1758635237917,7.23,219.79,219.65,7.29]
[1758635238226,12.28550459,219.8,219.65,7.29]
[1758635238923,7.23,219.77,219.65,7.29]
[1758635239425,5.05550459,219.81,219.69,7.29]
[1758635239628,7.23,219.82,219.7,63.6764]
[1758635239919,5.05550459,219.83,219.74,7.29]
[1758635240124,5.05550459,219.86,219.74,7.29]
[1758635240318,7.23,219.87,219.74,7.29]
[1758635240319,12.28550459,219.87,219.76,63.6589]
[1758635240522,5.05550459,219.88,219.81,4.0914]
[1758635240825,7.74928109,219.92,219.79,7.29]
[1758635241116,12.80478568,219.92,219.79,7.29]
[1758635241518,12.80478568,219.92,219.82,4.091]
[1758635241720,12.80478568,219.92,219.79,7.29]
[1758635242120,63.6174,219.91,219.73,70.9572]
[1758635242319,12.28550459,219.9,219.73,174.1572]
[1758635242521,63.6174,219.91,219.73,114.5827]
[1758635242522,68.67770459,219.89,219.73,114.5827]
[1758635242827,7.23,219.85,219.73,7.29]
[1758635243027,11.3209,219.85,219.75,4.0924]
[1758635243430,7.23,219.85,219.73,7.29]
[1758635243734,4.0912,219.83,219.74,4.0927]
[1758635244026,7.23,219.85,219.73,7.29]
[1758635244224,5.05550459,219.88,219.74,63.6645]
[1758635244429,5.05550459,219.88,219.75,7.3]
[1758635244622,4.0903,219.88,219.75,11.3924]
[1758635244822,4.0903,219.88,219.75,7.3]
[1758635245022,5.05550459,219.89,219.79,4.0917]
[1758635245328,7.36,219.9,219.74,63.6627]
[1758635245329,7.36,219.9,219.77,7.3]
[1758635245526,5.57478568,219.92,219.79,63.6506]
[1758635245834,5.57478568,219.92,219.8,7.3]
[1758635246432,0.51928109,219.92,219.83,4.091]
[1758635246625,0.51928109,219.92,219.8,7.3]
[1758635247026,63.619,219.9,219.75,7.3]
[1758635247327,7.36,219.88,219.75,7.3]
[1758635247520,4.0906,219.86,219.77,4.0921]
[1758635248321,4.0906,219.86,219.75,7.3]
[1758635248528,7.36,219.88,219.75,7.3]
[1758635248727,7.36,219.88,219.8,4.0916]
[1758635248936,5.05550459,219.91,219.8,7.3]